Cogmind - Beta 15 @@@ ROGUE MODE // 2025.05.18 @ 22:56:48 Player: szymekc Result: Self-destructed Performance ------------- Evolutions (2) 1000 Regions Visited (4) 800 Robots Destroyed (34) 170 Value Destroyed (644) 644 Prototype IDs (1) 20 Alien Tech Used (0) 0 Bonus (39) 39 TOTAL SCORE: 2673 Bonus ------- Follower Combat Kills 39 Cogmind --------- Core Integrity 522/550 Matter 290/300 Energy 240/240 System Corruption 1% Temperature Cool (0) Movement Walking (123) Location -8/Materials Parts ------- > --- POWER (1) -------- Nuclear Core > --- PROPULSION (5) --- Aluminum Leg Aluminum Leg Titanium Leg Combat Airjet > --- UTILITY (3) ------ Seismic Detector Improved Propulsion Shielding Hardened Medium Armor Plating > --- WEAPON (2) ------- Enhanced Autogun Mining Laser > --- INVENTORY (5) ---- Subdweller Power Source Light Treads EM Pulse Gun Ion Cannon Mini Grenade Launcher Peak State ------------ > --- POWER ------------ Nuclear Core > --- PROPULSION ------- Aluminum Leg Aluminum Leg Titanium Leg Combat Airjet > --- UTILITY ---------- Improved Terrain Scanner Seismic Detector Improved Propulsion Shielding > --- WEAPON ----------- Ion Cannon Enhanced Autogun > --- INVENTORY -------- Subdweller Power Source Light Treads EM Pulse Gun Mini Grenade Launcher Mining Laser [Rating: 27] Favorites ----------- Power Ion Engine Engine Ion Engine Power Core Nuclear Core Propulsion Light Treads Treads Light Treads Leg Aluminum Leg Hover Unit Combat Airjet Utility Seismic Detector Device Seismic Detector Protection Improved Propulsion Shielding Weapon Assault Rifle Energy Gun Small Laser Energy Cannon Ion Cannon Ballistic Gun Assault Rifle Launcher Mini Grenade Launcher Special Weapon Enhanced Flamer Build | -11 -10 -10 -10 -8 ------- Run | Yrd Mat Min Sub Mat Slots Evolved 4 | . . . . 4 Power . | . . . . . Propulsion 3 | . . . . 3 Utility 1 | . . . . 1 Weapon . | . . . . . Parts Attached 24 | 8 1 4 3 8 Power 3 | 1 . . 1 1 Engine 2 | 1 . . 1 . Core 1 | . . . . 1 Reactor . | . . . . . Propulsion 6 | 2 . . 1 3 Treads 2 | 2 . . . . Leg 3 | . . . . 3 Wheel . | . . . . . Hover 1 | . . . 1 . Flight . | . . . . . Utility 6 | 2 1 . 1 2 Device 4 | 2 1 . 1 . Storage . | . . . . . Processor . | . . . . . Hackware . | . . . . . Protection 2 | . . . . 2 Artifact . | . . . . . Weapon 9 | 3 . 4 . 2 Energy Gun 2 | 2 . . . . Energy Cannon 1 | . . . . 1 Ballistic Gun 2 | 1 . . . 1 Ballistic Cannon . | . . . . . Launcher 2 | . . 2 . . Special Weapon 2 | . . 2 . . Impact Weapon . | . . . . . Slashing Weapon . | . . . . . Piercing Weapon . | . . . . . Special Melee Weapon . | . . . . . Unidentified Prototypes 1 | . . . . 1 Parts Lost 3 | . . . 3 . Power 1 | . . . 1 . Propulsion 1 | . . . 1 . Utility . | . . . . . Weapon 1 | . . . 1 . Highest Loss Streak 3 | . . . 3 . To Critical Strikes . | . . . . . Average Backups 4 | 1 3 5 4 4 Power . | . . . . . Propulsion . | . . . 2 1 Utility . | . 1 1 . . Weapon 2 | . 2 3 2 2 Tool/Special . | . . . . . Unused Backups 1 | . . 1 . . Power . | . . . . . Propulsion . | . . . . . Utility . | . . . . . Weapon 1 | . . 1 . . Tool/Special . | . . . . . Average Slot Usage (%) 92 | . 100 100 76 84 Engine 11 | . 14 14 7 6 Treads 21 | . 28 28 11 . Leg 2 | . . . . 24 Hover 3 | . . . 10 9 Device 26 | . 28 28 28 15 Energy Gun 3 | . 14 1 . . Ballistic Gun 10 | . 14 14 3 8 Launcher 4 | . . 4 10 3 Special Weapon 4 | . . 8 3 1 Peak Build Rating 27 | 9 9 12 14 27 Average Rating 11 | 6 9 10 11 24 On Entrance 8 | . 9 9 10 13 Naked Turns . | . . . . . Heaviest Build 27 | 10 11 12 11 27 Greatest Support 40 | 40 40 40 40 37 Greatest Overweight (x) . | . . . . . Average Overweight (x) . | . . . . . Largest Inventory Capacity 5 | 5 5 5 5 5 Average Capacity 5 | 5 5 5 5 5 Most Carried 5 | 3 5 5 5 5 Average Carried 4 | 1 3 4 4 4 Final Capacity 5 | 5 5 5 5 5 Final Carried 5 | 3 5 5 5 5 Class Distribution -------------------- 63% | Mutant 26% | Scavenger-Mutant 10% | Commander-Mutant Dominant Class ---------------- Mutant | -10/Materials Mutant | -10/Mines Scavenger-Mutant | -10/Subcaves Scavenger-Mutant | -8/Materials Resources | -11 -10 -10 -10 -8 ----------- Run | Yrd Mat Min Sub Mat Matter Collected 777 | 319 89 191 88 90 Remotely . | . . . . . Salvage Created 1048 | 175 307 366 47 153 Parts 69 | 11 20 29 3 6 Haulers Intercepted 1 | . 1 . . . Recyclers Shooed . | . . . . . Parts Field Recycled . | . . . . . Retrieved Matter . | . . . . . Parts Self-Destructed 5 | . . . 5 . Prevented . | . . . . . Kills | -11 -10 -10 -10 -8 ------- Run | Yrd Mat Min Sub Mat Combat Hostiles Destroyed 21 | . 7 12 1 1 Guns 8 | . 7 1 . . Cannons 1 | . . . . 1 AOE 12 | . . 11 1 . Classes Destroyed 10 | 2 3 2 1 2 Worker 1 | . . 1 . . Builder 1 | . . 1 . . Tunneler 5 | 4 . 1 . . Hauler 1 | . 1 . . . Recycler 3 | 1 . 1 . 1 Operator 1 | . . . . 1 Swarmer 9 | . 3 6 . . Grunt 11 | . 4 7 . . Sentry 1 | . . . . 1 Subdweller 1 | . . . 1 . Best Kill Streak 4 | 2 4 4 1 2 Combat Bots Only 4 | . 4 3 1 1 Max Kills in Single Turn 3 | 1 2 3 1 1 Gunslinging 1 | . 1 . . . Exploded 3 | . . 3 1 . Melee . | . . . . . Uniques/NPCs Destroyed . | . . . . . Combat | -11 -10 -10 -10 -8 -------- Run | Yrd Mat Min Sub Mat Hostile Shots Fired 62 | . 27 24 9 2 Missed 20 | . 9 8 3 . Hits 42 | . 18 16 6 2 Projectile 42 | . 18 16 6 2 AOE 5 | . . 1 4 . Damage Taken 812 | . 200 312 272 28 Core 259 | . 57 65 109 28 Absorbed by Shields . | . . . . . Core Remaining (%) 53 | 100 . . 7 . Volleys Fired 67 | 14 23 18 4 8 Largest 2 | 2 2 2 2 2 Hottest 100 | 60 60 100 100 100 Shots Fired 116 | 28 46 25 5 12 Gun 88 | 28 46 9 1 4 Cannon 3 | . . . . 3 Launcher 10 | . . 9 1 . Special 15 | . . 7 3 5 Kinetic 50 | 14 23 8 1 4 Thermal 39 | 14 7 7 3 8 Explosive 10 | . . 9 1 . Electromagnetic 17 | . 16 1 . . Robot Hit Streak 7 | 6 4 5 7 3 Robot Miss Streak 3 | 2 3 3 . 1 Penetration Max . | . . . . . Secondary Targets 2 | . 2 . . . Max Gunslinging Chain 1 | . 1 . . . Shots Hit Robots 60 | 18 26 10 3 3 Core Hits 50 | 6 14 25 2 3 Critical Kills . | . . . . . Critical Parts Destroyed . | . . . . . Critical Strikes . | . . . . . Melee Attacks . | . . . . . Impact . | . . . . . Slashing . | . . . . . Piercing . | . . . . . Sneak Attacks . | . . . . . Combat Hostiles . | . . . . . Follow-up Attacks . | . . . . . Damage Inflicted 1485 | 199 364 771 85 66 Guns 591 | 199 320 56 . 16 Cannons 46 | . . . . 46 Explosions 783 | . 44 665 74 . Melee . | . . . . . Ramming 10 | . . 6 . 4 Kinetic 287 | 88 127 56 . 16 Thermal 298 | 111 86 44 11 46 Explosive 739 | . . 665 74 . Electromagnetic 151 | . 151 . . . Impact . | . . . . . Slashing . | . . . . . Piercing . | . . . . . Highest Corruption 1 | . . . . 1 Average Corruption 1 | . . . . 1 Corruption Purged . | . . . . . Corruption Blocked . | . . . . . Effects 1 | . . . . 1 Misfires 1 | . . . . 1 Overload Shots . | . . . . . Overflow Damage . | . . . . . Projectiles . | . . . . . Explosions . | . . . . . Melee . | . . . . . Knockbacks . | . . . . . Impact . | . . . . . Kinetic . | . . . . . Secondary . | . . . . . Self-Inflicted Damage 98 | . . 98 . . Shots 3 | . . 3 . . Rammed 3 | 1 . 2 . . Targets Rammed 5 | 1 . 2 . 2 Kicked 2 | . . . . 2 Crushed . | . . . . . Highest Temperature 78 | . 18 78 . 72 Average Temperature 18 | . 11 22 . 26 Received Heat Transfer 141 | . 81 51 . 9 Siege Activations . | . . . . . Martial Activations . | . . . . . Shielding Activations . | . . . . . Robots Disrupted 1 | . . 1 . . Combat Hostiles . | . . . . . Robots Corrupted . | . . . . . Combat Hostiles . | . . . . . Parts Fried . | . . . . . Impact Corruptions . | . . . . . Robots Melted . | . . . . . Combat Hostiles . | . . . . . Parts Melted . | . . . . . Heat Transferred 924 | 250 200 320 80 74 Parts Sabotaged . | . . . . . Parts Stolen . | . . . . . Parts Stripped . | . . . . . Power Chain Reactions 1 | . 1 . . . Alert | -11 -10 -10 -10 -8 ------- Run | Yrd Mat Min Sub Mat Maximum Alert Level . | . . . . . Low Security (%) 100 | 100 100 100 . 100 Level 1 . | . . . . . Level 2 . | . . . . . Level 3 . | . . . . . Level 4 . | . . . . . Level 5 . | . . . . . High Security . | . . . . . Max Security . | . . . . . Peak Influence 151 | 10 110 151 . 26 Initial 24 | . . 24 . . Average 55 | 1 39 84 . 6 Influence Increases 711 | 25 210 432 . 44 Destroy 0b10 Robot/C 420 | . 140 260 . 20 Destroy 0b10 Robot/NC 60 | 25 5 20 . 10 Destroy Leader 92 | . 32 50 . 10 Allied During Kill 41 | . . 41 . . Select Force Hacks 30 | . 30 . . . Destroy Structure 68 | . 3 61 . 4 Influence Decreases 711 | 25 148 430 64 44 Entered New Map 72 | . . 38 34 . Time Decay 639 | 25 148 392 30 44 Squads Dispatched 2 | . 1 . . 1 Investigation 2 | . 1 . . 1 Extermination . | . . . . . Reinforcement . | . . . . . Assault . | . . . . . Garrison . | . . . . . Intercept . | . . . . . Searches Triggered . | . . . . . Construction Impeded . | . . . . . Haulers Reinforced . | . . . . . Active Scanning Responses . | . . . . . Cargo Convoy Interrupts . | . . . . . Stealth | -11 -10 -10 -10 -8 --------- Run | Yrd Mat Min Sub Mat Distress Signals 1 | . 1 . . . Communications Jammed . | . . . . . Distress Signals . | . . . . . Times Spotted 33 | . 12 12 7 2 Peak Tracking Total 4 | . 4 3 2 2 Tactical Retreats 2 | . . . 2 . Traps | -11 -10 -10 -10 -8 ------- Run | Yrd Mat Min Sub Mat Traps Triggered 1 | . . . . 1 Indirectly . | . . . . . Trap Hack Attempts . | . . . . . Triggered . | . . . . . Disarmed . | . . . . . Reprogrammed . | . . . . . Reused . | . . . . . Traps Extracted . | . . . . . Installed 1 | . . . 1 . Triggered . | . . . . . Machines | -11 -10 -10 -10 -8 ---------- Run | Yrd Mat Min Sub Mat Machines Disabled . | . . . . . Max in Single Turn . | . . . . . Machines Repaired . | . . . . . Machines Dismantled . | . . . . . Machines Sabotaged . | . . . . . Overloaded Fab Kills . | . . . . . Hacking | -11 -10 -10 -10 -8 --------- Run | Yrd Mat Min Sub Mat Machines Accessed 5 | . 2 . . 3 Terminals 4 | . 1 . . 3 Fabricators . | . . . . . Repair Stations . | . . . . . Recycling Units 1 | . 1 . . . Scanalyzers . | . . . . . Garrison Access . | . . . . . Total Hacks 14 | . 6 . . 8 Successful 3 | . 2 . . 1 Failed 11 | . 4 . . 7 Catastrophic 3 | . 1 . . 2 Database Lockouts . | . . . . . Manual 12 | . 4 . . 8 Terminals 11 | . 3 . . 8 Fabricators . | . . . . . Repair Stations . | . . . . . Recycling Units 3 | . 3 . . . Scanalyzers . | . . . . . Garrison Access . | . . . . . Terminal Hacks 1 | . . . . 1 Branch Access Points 1 | . . . . 1 Fabricator Hacks . | . . . . . Repair Station Hacks . | . . . . . Recycling Unit Hacks . | . . . . . Scanalyzer . | . . . . . Garrison Access Hacks . | . . . . . Unauthorized Hacks 2 | . 2 . . . Terminals 1 | . 1 . . . Skim 1 | . 1 . . . Fabricators . | . . . . . Repair Stations . | . . . . . Recycling Units 1 | . 1 . . . Tunnel 1 | . 1 . . . Scanalyzers . | . . . . . Garrison Access . | . . . . . Data Cores Recovered 1 | . . . . 1 Used . | . . . . . Hacking Detections 5 | . 2 . . 3 Full Trace Events 1 | . . . . 1 Feedback Events . | . . . . . Feedback Blocked . | . . . . . Robot Schematics Acquired . | . . . . . Robots Built . | . . . . . Authchips . | . . . . . Time . | . . . . . Total Robot Build Rating . | . . . . . Part Schematics Acquired . | . . . . . Parts Built . | . . . . . Authchips . | . . . . . Time . | . . . . . Total Part Build Rating . | . . . . . Parts Repaired . | . . . . . Time . | . . . . . Parts Recycled . | . . . . . Recycled Matter . | . . . . . Retrieved Matter . | . . . . . Retrieved Components . | . . . . . Parts Scanalyzed . | . . . . . Part Schematics Acquired . | . . . . . Parts Damaged . | . . . . . Bothacking | -11 -10 -10 -10 -8 ------------ Run | Yrd Mat Min Sub Mat Used RIF Installer . | . . . . . Robots Hacked . | . . . . . Non-combat . | . . . . . Combat . | . . . . . Robot Hacks Applied . | . . . . . Relay Couplers Released . | . . . . . Fabnet Peak Effective % . | . . . . . Robots Rewired 1 | . . 1 . . Allies Hacked . | . . . . . Hacks Repelled . | . . . . . Allies | -11 -10 -10 -10 -8 -------- Run | Yrd Mat Min Sub Mat Total Allies 4 | . . 4 . . Largest Group 4 | . . 4 3 . Highest-Rated Group 48 | . . 48 32 . Highest-Rated Ally 16 | . . 16 16 . Total Orders . | . . . . . Ally Attacks 8 | . . 8 . . Total Damage 50 | . . 50 . . Kills 1 | . . 1 . . Allies Corrupted . | . . . . . Allies Melted . | . . . . . Intel | -11 -10 -10 -10 -8 ------- Run | Yrd Mat Min Sub Mat Active Infowar (turns) 2160 | 116 402 920 537 185 Terrain 2099 | 110 402 920 537 130 Seismic 2160 | 116 402 920 537 185 Robot Analysis Total . | . . . . . Derelict Logs Recovered 2 | . . 1 1 . Drone Launches . | . . . . . Drone Recoveries . | . . . . . Exploration | -11 -10 -10 -10 -8 ------------- Run | Yrd Mat Min Sub Mat Turns Passed 2255 | 211 402 920 537 185 Spaces Moved 1434 | 98 194 502 521 119 Core 3 | 3 . . . . Treads 861 | 95 194 502 70 . Legs 102 | . . . . 102 Wheels . | . . . . . Hover 468 | . . . 451 17 Flight . | . . . . . Fastest Speed 50 | 50 160 160 80 80 Average Speed 133 | 156 160 160 97 116 Slowest Speed 160 | 160 160 160 160 123 Overloaded Moves . | . . . . . Propulsion Burnouts . | . . . . . Robots Hopped . | . . . . . Potential Cave-ins . | . . . . . Cave-ins Triggered . | . . . . . Exploration Rate (%) 39 | 5 47 96 35 14 Regions Visited 4 Branch Regions 2 Pre-discovered Areas 1 | . 1 . . . Known Exits Taken . | . . . . . Unknown Exits Taken 4 | 1 1 1 1 . Scrap Searched 1 | . . 1 . . Spaces Dug 30 | . . 27 . 3 Terrain Destroyed 93 | . 3 79 7 4 Melee . | . . . . . Projectile 5 | . . 1 . 4 AOE 88 | . 3 78 7 . Terrain Rammed . | . . . . . Walls Destroyed . | . . . . . Machines Disabled . | . . . . . Actions | -11 -10 -10 -10 -8 --------- Run | Yrd Mat Min Sub Mat Total 1631 | 123 239 586 541 142 Wait 63 | . 17 44 2 . Move 1430 | 97 193 501 520 119 Hop . | . . . . . Pick Up 14 | 3 3 5 2 1 Fast Attach 13 | 7 . . 1 5 Attach 5 | . . . 3 2 Detach 3 | . . . 2 1 Swap 18 | 1 2 9 4 2 Drop 10 | . 1 5 2 2 Fire 67 | 14 23 18 4 8 Melee . | . . . . . Ram . | . . . . . Kick 2 | . . . . 2 Crush 3 | 1 . 2 . . Escape Stasis . | . . . . . Rewire 2 | . . 2 . . Trap 1 | . . . 1 . Miscellaneous . | . . . . . Route ------- -11/Scrapyard -10/Materials (discovered 3 exits: [*Mat] / [*Min x2]) -10/Mines (discovered 3 exits: [*Mat x2] / [*Sub]) -10/Subcaves -8/Materials (discovered 1 exit: Fac) History --------- Turn | Location | Event 8 | -11/Scrapyard | Discovered new exit (range 15) 212 | -11/Scrapyard | Entered Materials 308 | -10/Materials | Build established: Mutant 390 | -10/Materials | Discovered new exit (range 12) 390 | -10/Materials | Discovered new exit (range 4) 546 | -10/Materials | Discovered new exit (range 8) 614 | -10/Materials | Entered Mines 615 | -10/Mines | Assembled infested the area 670 | -10/Mines | Assisted by bots powering up and referring to "LRC-V3" 804 | -10/Mines | Discovered new exit (range 6) 836 | -10/Mines | A weapon hastily lodged in a ceiling crevice suddenly fell to the ground 919 | -10/Mines | Discovered new exit (range 7) 922 | -10/Mines | Learned Materials terminal intel 1133 | -10/Mines | Discovered new exit (range 4) 1534 | -10/Mines | Entered Subcaves 1534 | -10/Subcaves | Accompanied by 3 allies 1535 | -10/Subcaves | Approached by a straggling Scientist 1669 | -10/Subcaves | Core integrity fell below 50% 1688 | -10/Subcaves | Core integrity fell below 20% 1693 | -10/Subcaves | Learned location of 1 exit from Materials 1705 | -10/Subcaves | Lost 3 parts (1p1n1w) 1705 | -10/Subcaves | Lost 3 allies 1957 | -10/Subcaves | Discovered new exit (range 10) 1966 | -10/Subcaves | Build established: Scavenger-Mutant 2071 | -10/Subcaves | Entered Materials 2071 | -8/Materials | Evolved 4 slots: Propulsion x3, Utility x1 2072 | -8/Materials | Identified exit to Factory 2073 | -8/Materials | Loaded intel: 12 terminal locations 2256 | -8/Materials | Self-destructed Last Messages --------------- 02170_ Y-45 Defender destroyed. 02179_ Kicked T-07 Excavator out of the way. 02181_ Acquired 44 matter. 02190_ Connecting with Terminal... 02190_ ALERT: Suspicious activity at Terminal M010. Dispatching Investigation squad. 02195_ R-06 Scavenger collects Hvy. Assault Rifle. 02201_ Dropped Imp. Terrain Scanner. 02202_ Acquired Hrd. Medium Armor Plating. 02205_ System corrupted: FCS attempts to trigger Enh. Autogun. 02205_ System corrupted: Enh. Autogun misfires. 02207_ R-06 Scavenger destroyed. 02210_ Acquired 28 matter. 02220_ U-05 Engineer builds a Door. 02223_ K-01 Serf collects debris. 02228_ U-05 Engineer builds a Wall. 02230_ K-01 Serf collects debris. 02256_ Connecting with Terminal... >>Access(Branch) No branch access points found. Map ----- +----------------------------------------------------+ | ?????????????????????????????????????????????????? | | ?????????????????????????????????????????????????? | | ???????????????????????"T"???????????????????????? | | ?????????????????????????????????????????????????? | | ?????????????????????????????????????????????????? | | ?????????????????????????????????????????????????? | | ?????????????????????????????????????????????????? | | ?????????????????????????????????????????????????? | | ?????????????????????????????????????????????????? | | ?????????????????????????????????????????????????? | | ???????????????????????????????????"?????????????? | | ?????????????????????????????????????????????????? | | ?????????????????????????????????????#???????????? | | ?????????????????????#############???????????????? | | ?????????????????????# / #? ?????????????? | | ?????????????????????# ##???????? ?????# | | ?????????????????????# ######??????????# | | ?????????????????????+ ! # !#????????#?# | | ?????????????????????# # [ #??#???????# | | ?????????????????????# ! # #??????????# | | ???????????H?????????# # =######??#### | | ?????????????????????#######;##### !*[+%=! #??# | | ?????????????????????# ##??## "!#### #??# | | ?????????????????????# = #??# # T #?## ##?# | | ?????????????????????+ / #??### " ### [ ### | | ?????????????????????# @ #??#?# + % | | ?????????????????????# "T" #????######## ###### | | ?????????????????????# """ #???????????#####????# | | ?????????????????????########?????????#??????????# | | ???????????????????????????????????????#?????????# | | ?????????????????????????????????#????############ | | ??????????????????????????????????????# #?# | | ??????????????????????????????????????# """ ### | | ??????????????????????????????????????# """ # | | ?????????????????????????????#????????# """ + | | ??????????????????????????????????????# # | | ??????????????????????????????????????# """ ""### | | ????????????????????????????????#?????# """ T"#?? | | ??????????????????????????????????????# """ ""#?? | | ??????????????????????????????????????# #?? | | ??????????????????????????????????????##########?? | | | | | | | | | | | | | | | | | | | +----------------------------------------------------+ Best States ------------- Heat Dissipation 31 Energy Generation 15 Energy Capacity 250 Matter Stores 300 Matter Capacity 300 Sight Range 16 Terrain Scan Range 16 Terrain Scan Density 10 Armor Coverage 225 Propulsion Shielding 66 Evasion (%) 55 Recoil Reduction 2 Item Schematics ----------------- None Robot Schematics ------------------ None Fabricated ------------ Nothing Repaired ---------- Nothing Alien Tech Used ----------------- None Achievements -------------- None Challenges ------------ None Game ------ Seed SingularityPiercingExpander Manual? 0 Play Time 00:11:25 Cumulative 747.7 hours Start 2025.05.18 @ 22:46:49 End 2025.05.18 @ 22:56:48 Sessions 1 Manual Loads 0 Difficulty Rogue Special Mode None Game No. 247 Rogue 245 Adventurer 2 Explorer 0 Win Type - Total 43 Types 14/5/12/1/1/0/8/1/0/1 Lore% 95 Gallery% 93 Achievement% 82 Wizard Run 0 Options --------- Layout 0 ASCII 0 Keyboard 1 Movement Numpad Keybinds 0 Fullscreen 1 Font 24/Smallcaps Map View 76x50 Zoom Use 0% Tactical HUD 1 Map Filters NONE Filters NONE Steam 1 RUN: 6a8870fe-6be3-4671-946c-8ca99c86d5f9